bitfinex/quotes_BTCUSD_20240803
["timestamp","ask_amount","ask_price","bid_price","bid_amount"]
[1722662944177,0.02883,61589.0,61588.0,1.42031716]
[1722662945066,0.02883,61589.0,61588.0,1.44031716]
[1722662945523,0.02883,61589.0,61588.0,1.43998071]
[1722662945739,0.02883,61589.0,61588.0,1.48862455]
[1722662945966,0.02883,61589.0,61588.0,1.43998071]
[1722662946889,0.02883,61589.0,61588.0,1.41998071]
[1722662949131,0.02883,61589.0,61588.0,1.44198071]
[1722662949360,0.02883,61589.0,61588.0,1.49062455]
[1722662949575,0.02883,61589.0,61588.0,1.44198071]
[1722662949796,0.02883,61589.0,61588.0,1.49061571]
[1722662950512,0.00083,61589.0,61588.0,1.44098071]
[1722662950746,0.01483,61589.0,61588.0,1.51461754]
[1722662950964,0.01683,61589.0,61588.0,1.51461754]
[1722662951202,0.01683,61589.0,61588.0,1.75817054]
[1722662951429,0.01683,61589.0,61588.0,1.70953371]
[1722662952336,0.01683,61589.0,61588.0,1.78249948]
[1722662952558,0.01683,61589.0,61588.0,1.70953371]
[1722662952782,0.01683,61589.0,61588.0,1.78249834]
[1722662953463,0.01683,61589.0,61588.0,1.78250586]
[1722662954131,0.12173,61612.0,61606.0,0.121739]
[1722662954343,0.12173,61612.0,61605.0,0.243485]
[1722662954344,0.29031169,61611.0,61608.0,0.00157439]
[1722662954564,0.16858069,61610.0,61608.0,0.00157439]
[1722662955241,0.16858069,61609.0,61608.0,0.00157439]
[1722662955480,0.122729,61612.0,61608.0,0.00157439]
[1722662955731,0.16857589,61611.0,61608.0,0.00157439]
[1722662955945,0.122729,61612.0,61608.0,0.00157439]
[1722662956173,0.16857539,61611.0,61608.0,0.00157439]
[1722662956801,0.16857539,61611.0,61608.0,0.00957439]
[1722662957219,0.16857521,61610.0,61608.0,0.01857439]
[1722662957431,0.121732,61611.0,61608.0,0.01057439]
[1722662957654,0.16857523,61610.0,61608.0,0.00157439]
[1722662957863,0.16857523,61610.0,61608.0,0.009]
[1722662958058,0.16857523,61610.0,61609.0,0.00157439]
[1722662958308,0.121732,61611.0,61608.0,0.018]
[1722662958488,0.121732,61611.0,61609.0,0.00157439]
[1722662959339,0.16857393,61610.0,61607.0,0.00157439]
[1722662959577,0.16857393,61610.0,61608.0,0.01]
[1722662959780,0.121732,61611.0,61609.0,0.00157439]
[1722662960009,0.121732,61611.0,61606.0,0.19894]
[1722662960010,0.121729,61612.0,61607.0,0.12331339]
[1722662960216,0.16857306,61611.0,61610.0,0.00157439]
[1722662960424,0.16857306,61611.0,61609.0,0.009]
[1722662960425,0.16857306,61611.0,61609.0,0.00157439]
[1722662960854,0.16857306,61611.0,61608.0,0.00157439]
[1722662961064,0.16857306,61611.0,61609.0,0.008]
[1722662961286,0.16857306,61611.0,61610.0,0.00157439]
[1722662961720,0.16857306,61611.0,61608.0,0.00157439]
[1722662962191,0.29030506,61611.0,61608.0,0.00957439]
[1722662962400,0.16857306,61610.0,61608.0,0.00957439]
[1722662962851,0.121732,61611.0,61608.0,0.00957439]
[1722662963100,0.121732,61611.0,61610.0,0.00157439]
[1722662963333,0.121732,61611.0,61609.0,0.00157439]
[1722662963550,0.29030454,61611.0,61609.0,0.00157439]
[1722662963777,0.16857254,61610.0,61609.0,0.00157439]
[1722662964239,0.16857254,61610.0,61608.0,0.009]
[1722662964452,0.16857254,61610.0,61606.0,0.198941]
[1722662964667,0.16857254,61610.0,61607.0,0.00157439]
[1722662965103,0.16857254,61610.0,61609.0,0.009]
[1722662965575,0.16857254,61610.0,61607.0,0.00157439]
[1722662965790,0.16857254,61610.0,61607.0,0.01057439]
[1722662966005,0.16857254,61610.0,61609.0,0.009]
[1722662966438,0.243456,61613.0,61607.0,0.13231339]
[1722662966439,0.12173,61612.0,61607.0,0.13231339]
[1722662966658,0.16857346,61611.0,61607.0,0.13231339]
[1722662966952,0.243439,61617.0,61610.0,0.242733]
[1722662967209,0.1685618,61616.0,61615.0,0.0566]
[1722662967882,0.2902828,61616.0,61615.0,0.0566]
[1722662968767,0.121723,61615.0,61613.0,0.00157439]
[1722662969001,0.1685618,61614.0,61612.0,0.00157439]
[1722662970222,0.1685618,61613.0,61612.0,0.00157439]
[1722662970451,0.1685618,61614.0,61612.0,0.00157439]
[1722662970682,0.2902878,61614.0,61612.0,0.00157439]
[1722662970893,0.1685618,61613.0,61612.0,0.00157439]
[1722662971148,0.1685618,61613.0,61612.0,0.00257439]
[1722662971355,0.1685618,61613.0,61612.0,0.002]
[1722662971673,0.1685618,61614.0,61612.0,0.001]
[1722662971902,0.1685618,61614.0,61612.0,0.002]
[1722662972783,0.1685618,61614.0,61612.0,0.001]
[1722662973011,0.1685618,61614.0,61613.0,0.00157439]
[1722662973249,0.121724,61615.0,61613.0,0.00157439]
[1722662973677,0.16856557,61614.0,61612.0,0.00257439]
[1722662973896,0.16856557,61614.0,61612.0,0.00357439]
[1722662974117,0.16856557,61614.0,61612.0,0.00157439]
[1722662974348,0.16856557,61614.0,61613.0,0.028]
[1722662974603,0.16856557,61614.0,61613.0,0.014]
[1722662974604,0.29029057,61614.0,61613.0,0.014]
[1722662974813,0.29029057,61614.0,61612.0,0.00157439]
[1722662975067,0.16856557,61613.0,61612.0,0.00157439]
[1722662975277,0.16856557,61613.0,61612.0,0.00257439]
[1722662975488,0.16856557,61613.0,61612.0,0.001]
[1722662975694,0.16856557,61613.0,61612.0,0.00257439]
[1722662975911,0.16856557,61613.0,61612.0,0.00357439]
[1722662976121,0.16856557,61613.0,61612.0,0.001]
[1722662976335,0.16856557,61613.0,61612.0,0.00157439]
[1722662976648,0.16856557,61613.0,61612.0,0.00357439]
[1722662976854,0.16856557,61613.0,61612.0,0.002]
[1722662977317,0.121725,61614.0,61613.0,0.00157439]
[1722662977535,0.29029104,61614.0,61612.0,0.002]
[1722662977760,0.29029104,61614.0,61613.0,0.00157439]
[1722662977761,0.121725,61614.0,61613.0,0.00157439]
[1722662978200,0.121725,61614.0,61612.0,0.001]
[1722662978430,0.53374759,61613.0,61612.0,0.001]
[1722662979838,0.77720259,61613.0,61612.0,0.001]
[1722662980281,0.77720259,61613.0,61608.0,0.000913]
[1722662980282,0.121734,61610.0,61608.0,0.00248739]
[1722662980446,0.29030059,61609.0,61608.0,0.00248739]
[1722662980873,0.29030059,61609.0,61608.0,0.000913]
[1722662981110,0.29030551,61609.0,61608.0,0.000913]
[1722662981804,0.53377551,61609.0,61608.0,0.000913]
[1722662982018,0.53377551,61609.0,61608.0,0.001913]
[1722662982715,0.29030551,61609.0,61608.0,0.001913]
[1722662983337,0.53377551,61609.0,61608.0,0.002913]
[1722662983557,0.16857051,61609.0,61608.0,0.002913]
[1722662983803,0.121732,61611.0,61608.0,0.00448739]
[1722662984019,0.16857051,61610.0,61608.0,0.002913]
[1722662984436,0.16857051,61610.0,61609.0,0.0775]
[1722662984866,0.16857218,61610.0,61609.0,0.0775]
[1722662986161,0.29030518,61610.0,61609.0,0.0775]
[1722662986645,0.16857218,61610.0,61609.0,0.0775]
[1722662986896,0.16857218,61610.0,61609.0,0.0785]
[1722662987114,0.16857218,61610.0,61609.0,0.0795]
[1722662987763,0.16857218,61610.0,61609.0,0.1451]
[1722662987984,0.121729,61612.0,61609.0,0.1451]
[1722662988206,0.16857218,61611.0,61609.0,0.1451]
[1722662989781,0.16857218,61611.0,61609.0,0.266835]
[1722662989998,0.16857218,61610.0,61609.0,0.1441]
[1722662990252,0.16857218,61612.0,61609.0,0.265835]
[1722662990469,0.16857218,61611.0,61609.0,0.265835]
[1722662990686,0.16857218,61610.0,61609.0,0.265835]
[1722662990905,0.16857218,61613.0,61609.0,0.266835]
[1722662991121,0.16857218,61612.0,61609.0,0.264835]
[1722662991351,0.16857218,61611.0,61609.0,0.266835]
[1722662991542,0.121726,61614.0,61610.0,0.121733]
[1722662991787,0.16857013,61613.0,61611.0,0.0808]
[1722662991999,0.121726,61614.0,61612.0,0.0656]
[1722662992222,0.16856994,61613.0,61612.0,0.0656]
[1722662992443,0.121726,61614.0,61612.0,0.0656]
[1722662992640,0.16856994,61613.0,61612.0,0.0656]
[1722662993335,0.16856994,61614.0,61612.0,0.0656]
[1722662993572,0.00083,61616.0,61612.0,0.187329]
[1722662993573,0.16856994,61613.0,61612.0,0.187329]
[1722662993787,0.122552,61616.0,61612.0,0.187329]
[1722662993788,0.16856994,61615.0,61612.0,0.187329]
[1722662994020,0.16856994,61614.0,61612.0,0.188329]
[1722662994266,0.122552,61616.0,61613.0,0.00157439]
[1722662994499,0.16856321,61615.0,61613.0,0.00157439]
[1722662994712,0.122552,61616.0,61612.0,0.189329]
[1722662994713,0.16856321,61614.0,61612.0,0.189329]
[1722662994891,0.122552,61616.0,61613.0,0.0808]
[1722662995127,0.29028678,61615.0,61613.0,0.0808]
[1722662995342,0.16856278,61614.0,61613.0,0.0808]
[1722662996843,0.16856278,61614.0,61613.0,0.0948]
[1722662997496,0.16856278,61614.0,61613.0,0.1088]
[1722662997932,0.16856278,61614.0,61613.0,0.0948]
[1722662998362,0.16856278,61614.0,61613.0,0.1088]
[1722662998791,0.16856278,61614.0,61613.0,0.539582]
[1722662999090,0.16856278,61614.0,61613.0,0.296127]
[1722662999305,0.00083,61616.0,61615.0,0.51157]
[1722662999534,0.00083,61616.0,61615.0,0.56817]
[1722662999757,0.00083,61616.0,61615.0,0.811617]
[1722663000216,0.16937185,61616.0,61615.0,0.811617]
[1722663000489,0.00083,61616.0,61615.0,0.811617]
[1722663000716,0.16937146,61616.0,61615.0,0.825617]
[1722663000946,0.00083,61616.0,61615.0,0.839617]
[1722663001174,0.16937146,61616.0,61615.0,0.839617]
[1722663002274,0.16937146,61616.0,61615.0,0.59617]
[1722663002521,0.00083,61616.0,61615.0,0.59617]
[1722663003406,0.00083,61616.0,61615.0,0.839617]
[1722663003641,0.00083,61616.0,61615.0,0.59617]
[1722663003856,0.00083,61616.0,61615.0,0.839617]
[1722663007069,0.00083,61616.0,61615.0,0.59617]
[1722663007528,0.00083,61616.0,61615.0,0.839617]
[1722663008432,0.00083,61616.0,61615.0,0.84053]
[1722663011317,0.00083,61616.0,61615.0,0.597083]
[1722663011761,0.00083,61616.0,61615.0,0.84053]
[1722663012896,0.00083,61616.0,61615.0,0.540483]
[1722663013174,0.53453929,61616.0,61615.0,0.028913]
[1722663013411,0.16937529,61616.0,61615.0,0.028913]
[1722663013641,0.16937529,61616.0,61615.0,0.106013]
[1722663013878,0.16937529,61616.0,61615.0,0.535383]
[1722663014344,0.00083,61616.0,61615.0,0.77883]
[1722663016009,0.00083,61616.0,61615.0,1.17973624]
[1722663016982,0.00083,61616.0,61615.0,1.27574246]
[1722663017412,0.00083,61616.0,61615.0,1.30574246]
[1722663017642,0.00083,61616.0,61615.0,1.39174246]
[1722663017866,0.00083,61616.0,61615.0,1.62118946]
[1722663018100,0.00083,61616.0,61615.0,1.67084525]
[1722663018343,0.00083,61616.0,61615.0,1.62218946]
[1722663018571,0.00083,61616.0,61615.0,1.67184525]
[1722663018795,0.00083,61616.0,61615.0,1.60318946]
[1722663019037,0.00083,61616.0,61615.0,1.62318946]
[1722663019468,0.00083,61616.0,61615.0,1.60318946]
[1722663019905,0.00083,61616.0,61615.0,1.62218946]
[1722663020126,0.00083,61616.0,61615.0,1.62255585]
[1722663020351,0.00083,61616.0,61615.0,1.62355585]
[1722663020568,0.00083,61616.0,61615.0,1.60154078]
[1722663020805,0.00083,61616.0,61615.0,1.60254078]
[1722663021019,0.00083,61616.0,61615.0,1.60354078]
[1722663021260,0.00083,61616.0,61615.0,1.62354078]
[1722663022140,0.00083,61616.0,61615.0,1.69519657]
[1722663022370,0.00083,61616.0,61615.0,1.69512932]
[1722663023516,0.00083,61616.0,61615.0,1.64554078]
[1722663023732,0.00083,61616.0,61615.0,1.64654078]
[1722663023964,0.00083,61616.0,61615.0,1.69712932]
[1722663024191,0.00083,61616.0,61615.0,1.64854078]
[1722663024419,0.00083,61616.0,61615.0,1.64754078]
[1722663024672,0.00083,61616.0,61615.0,1.64654078]
[1722663025097,0.00083,61616.0,61615.0,1.64754078]
[1722663025743,0.00083,61616.0,61615.0,1.64854078]
[1722663027044,0.00083,61616.0,61615.0,1.64865576]
[1722663027937,0.00083,61616.0,61615.0,1.64765576]
[1722663028367,0.00083,61616.0,61615.0,1.64865576]
[1722663028701,0.00083,61616.0,61615.0,1.64765576]
[1722663028989,0.00083,61616.0,61615.0,1.64865576]
[1722663030204,0.00083,61616.0,61615.0,1.64765576]
[1722663030433,0.00083,61616.0,61615.0,1.62565576]
[1722663030659,0.00083,61616.0,61615.0,1.68319761]
[1722663030888,0.00083,61616.0,61615.0,1.70519761]
[1722663031109,0.00083,61616.0,61615.0,1.70519941]
[1722663031333,0.00083,61616.0,61615.0,1.70419941]
[1722663031982,0.00083,61616.0,61615.0,1.70519941]
[1722663032195,0.00083,61616.0,61615.0,1.70511009]
[1722663034209,0.00083,61616.0,61615.0,1.7049635]
[1722663037747,0.00083,61616.0,61615.0,1.70504435]
[1722663039323,0.00083,61616.0,61615.0,1.68304435]
[1722663039541,0.00083,61616.0,61615.0,1.70304435]
[1722663040830,0.00083,61616.0,61615.0,1.68304435]
[1722663041245,0.00083,61616.0,61615.0,1.68296764]
[1722663041458,0.00083,61616.0,61615.0,1.70496764]
[1722663041674,0.00083,61616.0,61615.0,1.60878324]
[1722663041888,0.00083,61616.0,61615.0,1.70498577]
[1722663042093,0.00083,61616.0,61615.0,1.64838577]
[1722663042309,0.00083,61616.0,61615.0,1.70498577]
[1722663043153,0.00083,61616.0,61615.0,1.75356301]
[1722663044113,0.00083,61616.0,61615.0,1.70498577]
[1722663044274,0.00083,61616.0,61615.0,1.75356301]
[1722663044945,0.00083,61616.0,61615.0,1.75349382]
[1722663045171,0.00083,61616.0,61615.0,1.70491658]
[1722663045605,0.00083,61616.0,61615.0,1.68291658]
[1722663045830,0.00083,61616.0,61615.0,1.75152547]
[1722663046048,0.00083,61616.0,61615.0,1.70491658]
[1722663046477,0.00083,61616.0,61615.0,1.68291658]
[1722663047138,0.00083,61616.0,61615.0,1.70291658]
[1722663049130,0.00083,61616.0,61615.0,1.75152547]
[1722663049370,0.00083,61616.0,61615.0,1.65991658]
[1722663049620,0.00083,61616.0,61615.0,1.60331658]
[1722663049860,0.00083,61616.0,61615.0,1.65991658]
[1722663050089,0.00083,61616.0,61615.0,1.65891658]
[1722663050328,0.00083,61616.0,61615.0,1.65791658]
[1722663050560,0.00083,61616.0,61615.0,1.75891658]
[1722663050781,0.00083,61616.0,61615.0,1.82952547]
[1722663051991,0.00083,61616.0,61615.0,1.82935788]
[1722663052259,0.01283,61616.0,61615.0,1.83037703]
[1722663052488,0.00083,61616.0,61615.0,1.82837756]
[1722663052738,0.01483,61616.0,61615.0,1.82837756]
[1722663052965,0.02883,61616.0,61615.0,1.73241128]
[1722663053595,0.02883,61616.0,61615.0,1.77973949]
[1722663053804,0.02883,61616.0,61615.0,1.66378324]
[1722663054065,0.02883,61616.0,61615.0,1.7124153]
[1722663054676,0.02883,61616.0,61615.0,1.8083867]
[1722663054877,0.02883,61616.0,61615.0,1.75975464]
[1722663055277,0.02883,61616.0,61615.0,1.77975464]
[1722663055498,0.02883,61616.0,61615.0,1.85271636]
[1722663055696,0.02883,61616.0,61615.0,1.75775464]
[1722663056706,0.02883,61616.0,61615.0,1.75770549]
[1722663056926,0.02883,61616.0,61615.0,1.77770549]
[1722663057132,0.02883,61616.0,61615.0,1.85266721]
[1722663057362,0.02883,61616.0,61615.0,1.83066721]
[1722663057583,0.02883,61616.0,61615.0,1.75770549]
[1722663058249,0.02883,61616.0,61615.0,1.83066721]
[1722663059377,0.02883,61616.0,61615.0,1.75798728]
[1722663060279,0.02883,61616.0,61615.0,1.855351]
[1722663061144,0.02883,61616.0,61615.0,1.87969193]
[1722663062341,0.02883,61616.0,61615.0,1.75798728]
[1722663063939,0.02883,61616.0,61615.0,1.75998728]
[1722663065481,0.02883,61616.0,61615.0,1.77998728]
[1722663065724,0.02883,61616.0,61615.0,1.77978608]
[1722663066189,0.02883,61616.0,61615.0,1.77977441]
[1722663066645,0.02883,61616.0,61615.0,1.80277441]
[1722663069260,0.02883,61616.0,61615.0,1.80283189]
[1722663072697,0.02883,61616.0,61615.0,1.70678324]
[1722663072926,0.02883,61616.0,61615.0,1.80689257]
[1722663074231,0.02883,61616.0,61615.0,2.05033957]
[1722663074469,0.00083,61627.0,61626.0,1.10681]
[1722663074878,0.00083,61627.0,61626.0,1.76438157]
[1722663076042,0.02583,61627.0,61626.0,1.76638157]
[1722663076796,0.02583,61627.0,61626.0,1.66627224]
[1722663077037,0.02583,61627.0,61626.0,1.7665569]
[1722663077509,0.02583,61627.0,61626.0,1.8152747]
[1722663081458,0.02583,61627.0,61626.0,1.7665569]
[1722663082119,0.02583,61627.0,61626.0,1.8115569]
[1722663082995,0.01283,61627.0,61626.0,1.9323514]
[1722663083261,0.00083,61627.0,61626.0,1.9313514]
[1722663083494,0.00083,61627.0,61626.0,1.81118699]
[1722663083713,0.00083,61627.0,61626.0,1.81218699]
[1722663083938,0.00083,61627.0,61626.0,1.81118699]
[1722663085288,0.00083,61627.0,61626.0,1.82164498]
[1722663086370,0.00083,61627.0,61626.0,1.94324256]
[1722663087091,0.00083,61627.0,61626.0,1.92136511]
[1722663087314,0.00083,61627.0,61626.0,1.67676753]
[1722663087543,0.00083,61627.0,61626.0,1.66731749]
[1722663088219,0.00083,61627.0,61626.0,1.74027772]
[1722663088657,0.00083,61627.0,61626.0,1.76227772]
[1722663088874,0.00083,61627.0,61626.0,1.78959719]
[1722663089151,0.00083,61627.0,61626.0,1.69231749]
[1722663089376,0.00083,61627.0,61626.0,1.71231749]
[1722663089606,0.00083,61627.0,61626.0,1.80959719]
[1722663090579,0.00083,61627.0,61626.0,1.61127224]
[1722663090811,0.00083,61627.0,61626.0,1.81005551]
[1722663091266,0.00083,61627.0,61626.0,1.71277581]
[1722663091949,0.00083,61627.0,61626.0,1.81005551]
[1722663093772,0.00083,61627.0,61626.0,2.05345851]
[1722663093997,0.00083,61627.0,61626.0,1.95617881]
[1722663094226,0.00083,61627.0,61626.0,1.95583758]
[1722663097760,0.00083,61627.0,61626.0,1.96513786]
[1722663098021,0.00083,61627.0,61626.0,2.08665756]
[1722663098232,0.00083,61627.0,61626.0,3.35445159]
[1722663098687,0.00083,61627.0,61626.0,3.35345159]
[1722663099391,0.00083,61627.0,61626.0,3.3539478]
[1722663099833,0.00083,61627.0,61626.0,3.3549478]
[1722663101092,0.00083,61627.0,61626.0,3.35491704]
[1722663101284,0.00083,61627.0,61626.0,3.23333907]
[1722663101483,0.00083,61627.0,61626.0,3.29822801]
[1722663101639,0.00083,61627.0,61626.0,3.35482801]
[1722663101850,0.00083,61627.0,61626.0,3.35382801]
[1722663102520,0.00083,61627.0,61626.0,3.35482801]
[1722663103203,0.00083,61627.0,61626.0,3.42221422]
[1722663105947,0.00083,61627.0,61626.0,3.42121422]
[1722663106175,0.00083,61627.0,61626.0,3.42021422]
[1722663106625,0.00083,61627.0,61626.0,3.42121422]
[1722663106842,0.00083,61627.0,61626.0,3.42021422]
[1722663107085,0.00083,61627.0,61626.0,3.42121422]
[1722663107553,0.00083,61627.0,61626.0,3.42221422]
[1722663107988,0.00083,61627.0,61626.0,3.42121422]
[1722663108201,0.00083,61632.0,61631.0,1.370612]
[1722663108428,0.00083,61632.0,61631.0,2.10418949]
[1722663108898,0.00083,61632.0,61631.0,2.10418713]
[1722663109361,0.00083,61632.0,61631.0,2.10518713]
[1722663109570,0.00083,61632.0,61631.0,2.03229548]
[1722663110745,0.00083,61632.0,61631.0,2.22116264]
[1722663110975,0.00915,61636.0,61635.0,1.470524]
[1722663111211,0.00915,61636.0,61635.0,2.21171993]
[1722663111869,0.00915,61636.0,61635.0,2.14466737]
[1722663112093,0.00915,61636.0,61635.0,2.11485799]
[1722663112315,0.00915,61636.0,61635.0,2.19203043]
[1722663112530,0.00915,61636.0,61635.0,2.19303043]
[1722663112970,0.00915,61636.0,61635.0,2.19403043]
[1722663113650,0.00915,61636.0,61635.0,2.21403012]
[1722663114359,0.00915,61636.0,61635.0,2.19402675]
[1722663114592,0.00915,61636.0,61635.0,2.21402675]
[1722663115250,0.00915,61636.0,61635.0,2.04948093]
[1722663115485,0.00915,61636.0,61635.0,2.1467421]
[1722663115903,0.00915,61636.0,61635.0,3.41453706]
[1722663116373,0.00915,61636.0,61635.0,3.41453888]
[1722663116817,0.00915,61636.0,61635.0,3.31254929]
[1722663117047,0.00915,61636.0,61635.0,3.41454958]
[1722663117534,0.00915,61636.0,61635.0,3.31737849]
[1722663119497,0.00915,61636.0,61635.0,3.31714591]
[1722663119713,0.00915,61636.0,61635.0,3.43862887]
[1722663120796,0.00915,61636.0,61635.0,3.43864212]
[1722663121017,0.00915,61636.0,61635.0,3.38453558]
[1722663121533,0.00915,61636.0,61635.0,3.38454325]
[1722663123531,0.00083,61647.0,61646.0,1.161558]
[1722663123747,0.00083,61647.0,61646.0,1.42080587]
[1722663124190,0.00083,61647.0,61646.0,1.52080587]
[1722663124827,0.00083,61647.0,61646.0,1.42001724]
[1722663125100,0.00083,61647.0,61646.0,1.52161346]
[1722663125542,0.00083,61647.0,61646.0,1.52261346]
[1722663125762,0.00083,61647.0,61646.0,1.60071346]
[1722663125994,0.00083,61647.0,61646.0,1.99753893]
[1722663126424,0.00083,61647.0,61646.0,1.94893746]
[1722663126636,0.00083,61647.0,61646.0,2.02183966]
[1722663127076,0.00083,61647.0,61646.0,1.94893746]
[1722663127296,0.00083,61647.0,61646.0,2.02181644]
[1722663128357,0.00083,61647.0,61646.0,1.92022022]
[1722663128587,0.00083,61647.0,61646.0,2.02150475]
[1722663128822,0.00083,61647.0,61646.0,1.92022022]
[1722663129077,0.00083,61647.0,61646.0,2.02150464]
[1722663129731,0.00083,61647.0,61646.0,2.00050464]
[1722663129961,0.00083,61647.0,61646.0,1.69958064]
[1722663130213,0.00083,61647.0,61646.0,1.26897766]
[1722663130432,0.00083,61647.0,61646.0,1.26797766]
[1722663130654,0.00083,61647.0,61646.0,1.52130166]
[1722663131083,0.00083,61647.0,61646.0,1.52230166]
[1722663131294,0.00083,61647.0,61646.0,1.27897766]
[1722663131501,0.00083,61647.0,61646.0,1.27797766]
[1722663133676,0.00083,61647.0,61646.0,1.27897766]
[1722663133912,0.00083,61647.0,61646.0,1.28097766]
[1722663134334,0.00083,61647.0,61646.0,1.27997766]
[1722663134541,0.00083,61647.0,61646.0,1.52430166]
[1722663135164,0.00083,61647.0,61646.0,1.27897766]
[1722663135389,0.00083,61647.0,61646.0,1.27939599]
[1722663135636,0.00083,61647.0,61646.0,1.27839599]
[1722663135856,0.00083,61647.0,61646.0,1.27939599]
[1722663136571,0.00083,61647.0,61646.0,1.27839599]
[1722663137679,0.00083,61647.0,61646.0,1.27939599]
[1722663138107,0.00083,61647.0,61646.0,1.27839599]
[1722663138532,0.00083,61647.0,61646.0,1.27939599]
[1722663139065,0.00083,61647.0,61646.0,1.27981469]
[1722663139546,0.00083,61647.0,61646.0,1.27971054]
[1722663140501,0.00083,61647.0,61646.0,1.27972101]
[1722663141186,0.00083,61647.0,61646.0,1.52304501]
[1722663141687,0.00083,61647.0,61646.0,1.27972101]
[1722663142347,0.00083,61647.0,61646.0,1.26972101]
[1722663142971,0.00083,61647.0,61646.0,1.27972101]
[1722663143185,0.00083,61647.0,61646.0,1.26972101]
[1722663145921,0.00083,61647.0,61646.0,1.27972101]
[1722663146133,0.00083,61647.0,61646.0,1.26972101]
[1722663146627,0.00083,61647.0,61646.0,1.22312101]
[1722663146856,0.00083,61647.0,61646.0,1.26972101]
[1722663147536,0.00083,61647.0,61646.0,1.27972101]
[1722663149220,0.00083,61647.0,61646.0,1.42632101]
[1722663149449,0.00083,61647.0,61646.0,1.32429324]
[1722663149678,0.00083,61647.0,61646.0,1.67010962]
[1722663149940,0.00083,61647.0,61646.0,1.56761724]
[1722663150181,0.00083,61647.0,61646.0,1.42678529]
[1722663150652,0.00083,61647.0,61646.0,1.69310929]
[1722663151361,0.00083,61647.0,61646.0,1.74150998]
[1722663153045,0.00083,61647.0,61646.0,1.63924057]
[1722663153259,0.00083,61647.0,61646.0,1.69279943]
[1722663153484,0.00083,61647.0,61646.0,1.7900461]
[1722663154455,0.00083,61647.0,61646.0,1.69279943]
[1722663154682,0.00083,61647.0,61646.0,1.81435777]
[1722663155368,0.00083,61647.0,61646.0,1.69279943]
[1722663156787,0.00083,61647.0,61646.0,1.59061724]
[1722663157024,0.00083,61647.0,61646.0,1.69694605]
[1722663157244,0.00083,61647.0,61646.0,1.69894605]
[1722663157689,0.00083,61647.0,61646.0,1.70809605]
[1722663158134,0.00083,61647.0,61646.0,1.94143652]
[1722663158356,0.00083,61647.0,61646.0,2.03878838]
[1722663158571,0.00083,61647.0,61646.0,2.01878838]
[1722663160584,0.00083,61647.0,61646.0,1.91245957]
[1722663160822,0.00083,61647.0,61646.0,3.21939894]
[1722663161039,0.00083,61647.0,61646.0,3.04343848]
[1722663161258,0.00083,61647.0,61646.0,3.04345995]
[1722663161703,0.00083,61647.0,61646.0,3.28678395]
[1722663161888,0.00083,61647.0,61646.0,3.28578395]
[1722663162169,0.00083,61647.0,61646.0,3.28678395]
[1722663162170,0.00583,61647.0,61646.0,3.28678395]
[1722663162389,0.00583,61647.0,61646.0,3.28578395]
[1722663162612,0.00583,61647.0,61646.0,3.28678395]
[1722663163587,0.00583,61647.0,61646.0,3.04345995]
[1722663164275,0.00583,61647.0,61646.0,3.28678395]
[1722663164513,0.00583,61647.0,61646.0,3.18024974]
[1722663164740,0.00583,61647.0,61646.0,3.28681934]
[1722663165466,0.00583,61647.0,61646.0,3.43279148]
[1722663165704,0.47251164,61667.0,61652.0,0.2324]
[1722663165921,0.47251164,61667.0,61652.0,1.38946826]
[1722663166141,0.00915,61672.0,61652.0,1.97607026]
[1722663166373,0.00915,61672.0,61652.0,2.21937126]
[1722663166582,0.00915,61672.0,61652.0,1.97282719]
[1722663166795,0.00915,61672.0,61652.0,1.87553518]
[1722663167281,0.00915,61672.0,61652.0,1.81993518]
[1722663167507,0.00915,61672.0,61652.0,1.87653518]
[1722663168181,0.00915,61672.0,61652.0,1.86399249]
[1722663168410,0.00915,61672.0,61652.0,1.86499249]
[1722663168411,0.01015,61653.0,61652.0,1.86499249]
[1722663169982,0.01015,61653.0,61652.0,1.86699249]
[1722663170424,0.01015,61653.0,61652.0,1.88699249]
[1722663170645,0.01015,61653.0,61652.0,1.98427356]
[1722663170904,0.00794429,61653.0,61652.0,1.88699249]
[1722663171341,0.00794429,61653.0,61652.0,1.98426736]
[1722663171560,0.00794429,61653.0,61652.0,1.96426733]
[1722663175626,0.00794429,61653.0,61652.0,1.87660538]
[1722663175847,0.00794429,61653.0,61652.0,1.87635483]
[1722663176507,0.00794429,61653.0,61652.0,2.11965583]
[1722663177153,0.00794429,61653.0,61652.0,2.11968552]
[1722663177595,0.00794429,61653.0,61652.0,2.11968551]
[1722663180889,0.00794429,61653.0,61652.0,1.99793299]
[1722663181525,0.00794429,61653.0,61652.0,2.24123399]
[1722663181977,0.00794429,61653.0,61652.0,1.99793299]
[1722663182905,0.00794429,61653.0,61652.0,2.24123207]
[1722663183126,0.00794429,61653.0,61652.0,2.24130193]
[1722663183568,0.00794429,61653.0,61652.0,2.30866195]
[1722663183792,0.00794429,61653.0,61652.0,3.57645691]
[1722663184243,0.00694429,61653.0,61652.0,3.57545691]
[1722663184480,0.00794429,61653.0,61652.0,3.57645691]
[1722663184711,0.00794429,61653.0,61652.0,3.57545691]
[1722663184983,0.00794429,61653.0,61652.0,3.59545691]
[1722663185231,0.00894429,61653.0,61652.0,3.57545691]
[1722663185716,0.00894429,61653.0,61652.0,3.57645691]
[1722663185945,0.00894429,61653.0,61652.0,3.57643779]
[1722663186169,0.00894429,61653.0,61652.0,3.57543779]
[1722663186414,0.00894429,61653.0,61652.0,3.59643779]
[1722663187050,0.00894429,61653.0,61652.0,3.33313679]
[1722663187526,0.00894429,61653.0,61652.0,3.57643779]
[1722663189939,0.00894429,61653.0,61652.0,3.33314125]
[1722663190400,0.00894429,61653.0,61652.0,3.21159023]
[1722663190634,0.00894429,61653.0,61652.0,3.45489123]
[1722663192179,0.00894429,61653.0,61652.0,3.47489123]
[1722663192826,0.00915,61672.0,61671.0,0.664665]
[1722663193045,0.17754898,61672.0,61671.0,1.06535024]
[1722663193476,0.00915,61672.0,61671.0,1.06535024]
[1722663193685,0.17754897,61672.0,61671.0,1.06535024]
[1722663194988,0.17154897,61672.0,61671.0,1.06535024]
[1722663195195,0.17154897,61672.0,61671.0,1.06635024]
[1722663195399,0.17154897,61672.0,61671.0,1.16635024]
[1722663195610,0.17154897,61672.0,61671.0,1.16535024]
[1722663195856,0.17154897,61672.0,61671.0,1.16635024]